bitfinex/quotes_BTCUSD_20220405
["timestamp","ask_amount","ask_price","bid_price","bid_amount"]
[1649161746002,1.16317509,47152.0,47151.0,0.01072375]
[1649161746202,1.16317509,47152.0,47150.0,0.18805268]
[1649161746304,1.16317509,47152.0,47151.0,0.66402375]
[1649161746404,1.16317509,47152.0,47149.0,0.052998]
[1649161746508,1.16317509,47152.0,47151.0,0.04400132]
[1649161746603,1.16317509,47152.0,47149.0,0.052998]
[1649161746705,1.16317509,47152.0,47151.0,0.04400132]
[1649161746808,0.86917509,47152.0,47151.0,0.04400132]
[1649161747206,0.86917509,47152.0,47149.0,0.052998]
[1649161747313,0.86917509,47152.0,47151.0,0.01072238]
[1649161747561,0.92216309,47152.0,47151.0,0.01072238]
[1649161747862,0.70166309,47152.0,47151.0,0.01072238]
[1649161748414,0.70166309,47152.0,47149.0,0.052998]
[1649161748511,0.70166309,47152.0,47151.0,0.04400132]
[1649161748961,0.52186309,47152.0,47151.0,0.04400132]
[1649161749464,0.52186309,47152.0,47149.0,0.052998]
[1649161749562,0.52186309,47152.0,47151.0,0.01072432]
[1649161750011,0.34586309,47152.0,47151.0,0.01072432]
[1649161750616,0.34586309,47152.0,47151.0,0.01072329]
[1649161751049,0.16286309,47152.0,47151.0,0.01072329]
[1649161752049,0.5544459,47152.0,47151.0,0.01072329]
[1649161752151,0.15936309,47152.0,47151.0,0.01072329]
[1649161752349,0.05936309,47152.0,47151.0,0.01072329]
[1649161753198,0.3389968,47152.0,47151.0,0.01072329]
[1649161753504,0.4389968,47152.0,47151.0,0.01072329]
[1649161753605,0.4389968,47152.0,47151.0,0.01062329]
[1649161753805,0.49199362,47152.0,47151.0,0.01062329]
[1649161754104,0.7832399,47152.0,47151.0,0.01062329]
[1649161754892,0.94904946,47152.0,47151.0,0.01062329]
[1649161756497,0.94904946,47152.0,47144.0,0.01061]
[1649161756594,0.94904946,47152.0,47149.0,0.04390132]
[1649161756696,0.7832399,47152.0,47151.0,0.04390132]
[1649161756796,0.46460619,47152.0,47151.0,0.04390132]
[1649161756900,0.41160937,47152.0,47151.0,0.04390132]
[1649161757499,0.12036309,47152.0,47151.0,0.04390132]
[1649161759547,0.12036309,47152.0,47151.0,0.0107267]
[1649161760346,0.12036309,47152.0,47151.0,0.3107267]
[1649161760445,0.12036309,47152.0,47151.0,0.9640267]
[1649161760549,0.12036309,47152.0,47151.0,1.3033]
[1649161760648,0.12036309,47152.0,47151.0,1.41402227]
[1649161760753,0.004,47155.0,47153.0,0.6533]
[1649161760898,0.004,47155.0,47154.0,0.96402227]
[1649161761046,0.004,47155.0,47154.0,1.00302227]
[1649161761145,0.00487397,47160.0,47156.0,0.6533]
[1649161761300,0.00487397,47160.0,47157.0,0.3]
[1649161761398,0.00487397,47160.0,47159.0,0.04390132]
[1649161761595,0.00487397,47160.0,47154.0,0.339]
[1649161761697,0.00487397,47160.0,47159.0,0.01072227]
[1649161761898,0.00187397,47161.0,47159.0,0.01072227]
[1649161761995,0.00187397,47161.0,47160.0,0.04390132]
[1649161762099,0.00187397,47161.0,47157.0,0.052972]
[1649161762296,0.002,47163.0,47157.0,0.052972]
[1649161762297,0.052981,47162.0,47157.0,0.052972]
[1649161762395,0.052981,47162.0,47157.0,0.706272]
[1649161762498,0.05356001,47162.0,47161.0,0.04390132]
[1649161762600,0.00057901,47162.0,47161.0,0.01072227]
[1649161763099,0.04750856,47164.0,47161.0,0.01072227]
[1649161763250,0.04750856,47164.0,47162.0,0.10594]
[1649161763348,0.04750856,47164.0,47163.0,0.01072227]
[1649161764052,0.02060856,47164.0,47163.0,0.01072227]
[1649161764152,0.01585771,47164.0,47163.0,0.01072227]
[1649161764254,0.01585771,47164.0,47163.0,0.31072227]
[1649161764352,0.01585771,47164.0,47163.0,0.3]
[1649161764453,0.01585771,47164.0,47163.0,0.03890132]
[1649161764657,0.01585771,47164.0,47163.0,0.01072227]
[1649161765107,0.00195771,47165.0,47163.0,0.01072227]
[1649161765255,0.00242767,47165.0,47163.0,0.01072227]
[1649161765361,0.00242767,47165.0,47164.0,0.03890132]
[1649161765761,0.00242767,47165.0,47164.0,0.33890132]
[1649161766101,0.00242767,47165.0,47164.0,0.03890132]
[1649161766305,0.00132767,47165.0,47164.0,0.03890132]
[1649161766749,0.00132767,47165.0,47157.0,0.67775454]
[1649161766852,0.00132767,47165.0,47164.0,0.01072227]
[1649161767205,0.00052767,47165.0,47164.0,0.01072227]
[1649161767949,0.00052767,47165.0,47164.0,0.31072227]
[1649161768148,0.04159467,47167.0,47164.0,0.31072227]
[1649161768249,0.04159467,47167.0,47166.0,0.01072227]
[1649161768349,0.04253459,47167.0,47166.0,0.01072227]
[1649161768449,0.0431528,47167.0,47166.0,0.01072227]
[1649161768650,0.0431528,47167.0,47166.0,1.5603]
[1649161768651,0.00155813,47167.0,47166.0,1.5603]
[1649161768752,4.397e-05,47168.0,47167.0,1.65]
[1649161768853,4.397e-05,47168.0,47167.0,2.99544163]
[1649161768957,4.397e-05,47168.0,47167.0,1.84372057]
[1649161769054,4.397e-05,47168.0,47167.0,3.29573766]
[1649161769151,4.397e-05,47168.0,47167.0,1.56504163]
[1649161769252,4.397e-05,47168.0,47167.0,1.428814]
[1649161769352,2.06711349,47173.0,47167.0,1.36137]
[1649161769453,2.06711349,47173.0,47167.0,0.244914]
[1649161769653,2.06711349,47173.0,47167.0,0.105914]
[1649161769894,2.06711349,47173.0,47166.0,1.627454]
[1649161769994,0.052968,47169.0,47166.0,1.52154]
[1649161770096,0.052968,47169.0,47168.0,0.0095345]
[1649161770198,1.99420655,47173.0,47168.0,0.0095345]
[1649161770301,0.29348526,47171.0,47166.0,1.52154]
[1649161770699,0.29348526,47171.0,47166.0,0.63604]
[1649161770901,0.34646303,47171.0,47166.0,0.63604]
[1649161771002,0.17445741,47167.0,47166.0,0.63604]
[1649161771105,0.17445741,47167.0,47166.0,0.80604]
[1649161771202,0.41879416,47167.0,47166.0,0.80604]
[1649161771451,2.35,47166.0,47162.0,0.00040644]
[1649161771903,2.35,47166.0,47161.0,0.757]
[1649161772004,2.35,47166.0,47149.0,0.0106]
[1649161772102,2.35,47166.0,47146.0,0.01061]
[1649161772103,2.7058946,47166.0,47146.0,0.01061]
[1649161772253,2.9558946,47166.0,47146.0,0.01061]
[1649161772357,0.2821202,47150.0,47144.0,0.01061]
[1649161772452,0.28913683,47149.0,47144.0,0.01061]
[1649161772555,0.3,47148.0,47144.0,0.01061]
[1649161772854,0.039,47147.0,47135.0,0.01061]
[1649161772953,0.44815639,47147.0,47136.0,0.5]
[1649161773057,0.50116939,47147.0,47136.0,0.5]
[1649161773165,0.19877522,47142.0,47127.0,0.0999]
[1649161773257,0.3,47141.0,47127.0,0.0999]
[1649161773359,0.3,47141.0,47128.0,0.32329241]
[1649161773460,0.25638265,47136.0,47129.0,0.28258]
[1649161773557,0.3,47135.0,47128.0,0.31268241]
[1649161773657,0.25638265,47136.0,47128.0,0.31268241]
[1649161773757,0.3,47135.0,47128.0,0.31268241]
[1649161773961,0.24575322,47131.0,47128.0,0.31268241]
[1649161774059,0.3,47134.0,47129.0,0.21293301]
[1649161774157,0.22273233,47135.0,47128.0,0.31268241]
[1649161774258,0.26173233,47135.0,47128.0,0.31268241]
[1649161774356,0.36779433,47135.0,47127.0,0.0999]
[1649161774456,0.36779433,47135.0,47129.0,0.00038725]
[1649161774556,0.1060608,47134.0,47129.0,0.00038725]
[1649161774657,0.053031,47134.0,47129.0,0.00038725]
[1649161775463,0.053031,47134.0,47127.0,0.25551961]
[1649161775660,0.039,47140.0,47129.0,0.00038725]
[1649161775661,0.053017,47137.0,47129.0,0.00038725]
[1649161775761,0.01061,47136.0,47129.0,0.00038725]
[1649161776016,0.01061,47136.0,47130.0,0.47312219]
[1649161776114,0.039,47140.0,47130.0,0.47312219]
[1649161776115,0.039,47140.0,47131.0,0.25551961]
[1649161776214,0.039,47140.0,47132.0,0.25551961]
[1649161776312,0.039,47140.0,47130.0,0.21760258]
[1649161776313,0.039,47140.0,47136.0,0.31234566]
[1649161776413,0.30410906,47141.0,47136.0,0.31234566]
[1649161776512,0.01061,47146.0,47136.0,0.31234566]
[1649161776612,0.27561372,47147.0,47139.0,0.053006]
[1649161776713,0.053009,47145.0,47139.0,0.053006]
[1649161777315,0.25134491,47145.0,47139.0,0.053006]
[1649161777512,0.25134491,47145.0,47136.0,0.5684423]
[1649161777616,0.25134491,47145.0,47139.0,1.10996155]
[1649161777617,0.053009,47145.0,47139.0,1.10996155]
[1649161777718,0.063603,47151.0,47140.0,0.9533]
[1649161777819,0.6094,47160.0,47143.0,0.6533]
[1649161777820,0.0106,47157.0,47143.0,0.6533]
[1649161777917,1.215393,47160.0,47146.0,0.25551961]
[1649161778017,0.0106,47159.0,47148.0,0.25551961]
[1649161778117,0.002,47165.0,47149.0,0.90881961]
[1649161778222,0.002,47165.0,47151.0,0.25551961]
[1649161778321,0.002,47165.0,47152.0,0.29586496]
[1649161778417,0.002,47165.0,47153.0,0.42]
[1649161778517,0.002,47165.0,47158.0,0.16434288]
[1649161778617,0.002,47165.0,47161.0,0.052974]
[1649161778719,0.002,47165.0,47162.0,0.31071818]
[1649161778917,0.002,47165.0,47162.0,0.01071818]
[1649161779021,2.06945121,47173.0,47162.0,0.01071818]
[1649161779119,1.8053156,47173.0,47163.0,0.26484162]
[1649161779219,1.8053156,47173.0,47163.0,0.26214962]
[1649161779318,1.8053156,47173.0,47163.0,0.43222295]
[1649161779419,0.00052111,47167.0,47163.0,0.43222295]
[1649161779520,0.00052111,47167.0,47164.0,0.0106]
[1649161779973,0.00052111,47167.0,47165.0,0.052977]
[1649161780321,1.8042156,47173.0,47165.0,0.052977]
[1649161780721,0.23718787,47166.0,47163.0,0.17007333]
[1649161780821,0.23718787,47166.0,47162.0,0.17046133]
[1649161781044,0.05298589,47171.0,47162.0,0.000388]
[1649161781545,0.05298589,47171.0,47161.0,0.17007333]
[1649161781644,0.2980702,47169.0,47164.0,0.28675646]
[1649161781745,0.29826006,47169.0,47160.0,0.17007333]
[1649161781848,0.2977835,47166.0,47160.0,0.17007333]
[1649161782048,0.2977835,47166.0,47159.0,0.17007333]
[1649161782195,0.35077341,47166.0,47159.0,0.17007333]
[1649161782296,0.10597591,47166.0,47160.0,0.17007333]
[1649161782396,0.052986,47166.0,47160.0,0.17007333]
[1649161783094,0.052986,47166.0,47164.0,0.2437953]
[1649161783195,0.052986,47166.0,47160.0,0.17007333]
[1649161783601,0.052986,47166.0,47161.0,0.17007333]
[1649161783798,0.052986,47166.0,47162.0,0.17007333]
[1649161784198,0.052986,47166.0,47163.0,0.22305433]
[1649161784300,0.052986,47166.0,47163.0,0.052981]
[1649161784500,0.052986,47166.0,47162.0,0.17007333]
[1649161785342,0.052986,47166.0,47162.0,0.17069065]
[1649161785597,0.052986,47166.0,47162.0,0.00061732]
[1649161785694,0.052986,47166.0,47162.0,0.17069065]
[1649161785795,0.052986,47166.0,47163.0,0.17007333]
[1649161786094,0.052986,47166.0,47162.0,0.17069065]
[1649161786293,0.052986,47166.0,47162.0,0.17007333]
[1649161786497,0.052986,47166.0,47161.0,0.17007333]
[1649161786598,0.052986,47166.0,47162.0,0.00061732]
[1649161786951,0.052986,47166.0,47150.0,31.0]
[1649161786952,2.35,47164.0,47150.0,31.0]
[1649161787050,2.35,47164.0,47149.0,43.0]
[1649161787051,0.2,47155.0,47149.0,43.0]
[1649161787150,0.672284,47154.0,47139.0,0.33995625]
[1649161787251,0.672284,47154.0,47140.0,0.09161941]
[1649161787252,0.392009,47154.0,47140.0,0.09161941]
[1649161787350,0.29170371,47142.0,47140.0,0.09161941]
[1649161787449,0.3,47141.0,47135.0,0.09161941]
[1649161787553,0.039,47141.0,47128.0,0.01061]
[1649161787648,0.039,47141.0,47127.0,0.30988608]
[1649161787749,0.039,47141.0,47127.0,0.42011933]
[1649161787849,0.039,47141.0,47128.0,0.08125448]
[1649161787948,0.039,47141.0,47132.0,0.29523932]
[1649161788149,0.039,47141.0,47127.0,0.01061]
[1649161788302,0.053023,47137.0,47127.0,0.01061]
[1649161788401,0.15909191,47135.0,47127.0,0.01061]
[1649161788559,0.24865193,47131.0,47126.0,0.22416838]
[1649161788701,0.30415327,47135.0,47120.0,8.11992172]
[1649161788802,0.30415327,47135.0,47121.0,0.08128803]
[1649161788903,0.198092,47135.0,47121.0,0.19059975]
[1649161789003,0.198092,47135.0,47131.0,0.18517363]
[1649161789201,0.039,47135.0,47122.0,9.01061]
[1649161789303,0.039,47135.0,47123.0,0.42190633]
[1649161789404,0.106062,47134.0,47124.0,0.01061]
[1649161789505,0.106062,47134.0,47123.0,9.42190633]
[1649161789602,0.106062,47134.0,47130.0,0.26817662]
[1649161789702,0.106062,47134.0,47124.0,8.0]
[1649161789803,0.106062,47134.0,47124.0,0.10931172]
[1649161790001,0.106062,47134.0,47130.0,0.28069585]
[1649161790104,0.106062,47134.0,47130.0,0.26469585]
[1649161790755,0.05302117,47133.0,47131.0,0.26068568]
[1649161790852,0.053022,47132.0,47130.0,0.26469585]
[1649161792398,0.053022,47132.0,47131.0,0.17]
[1649161792900,0.053022,47132.0,47130.0,0.26469585]
[1649161793905,0.10604569,47132.0,47130.0,0.26469585]
[1649161794902,0.10604569,47132.0,47131.0,0.01073171]
[1649161795303,0.10604569,47132.0,47130.0,0.26469585]
[1649161795405,0.10604569,47132.0,47131.0,0.17]
[1649161796046,0.10604569,47132.0,47121.0,0.01061]
[1649161796244,0.10604569,47132.0,47129.0,0.00059813]
[1649161796349,0.38723198,47132.0,47129.0,0.00059813]
[1649161796547,0.10604569,47132.0,47129.0,0.00059813]
[1649161796846,0.10604569,47132.0,47130.0,0.2433347]
[1649161797148,0.053022,47132.0,47130.0,0.2433347]
[1649161797948,0.053022,47132.0,47131.0,0.01073171]
[1649161798049,0.053022,47132.0,47130.0,0.2433347]
[1649161798549,0.053022,47132.0,47131.0,0.01073171]
[1649161798650,0.053022,47132.0,47130.0,0.2433347]
[1649161798900,0.053022,47132.0,47131.0,0.17]
[1649161800123,0.053022,47132.0,47131.0,0.16151564]
[1649161800331,0.04453484,47132.0,47131.0,0.16151564]
[1649161800476,0.04453484,47132.0,47131.0,0.01073171]
[1649161800878,0.04453484,47132.0,47131.0,0.01072829]
[1649161801075,0.04453484,47132.0,47131.0,0.00131446]
[1649161801183,0.053011,47135.0,47131.0,0.00131446]
[1649161801279,0.053011,47135.0,47134.0,0.00131449]
[1649161801380,0.3284,47144.0,47137.0,0.053005]
[1649161801481,0.41874142,47151.0,47142.0,0.00131449]
[1649161801580,0.46954142,47151.0,47145.0,0.00131449]
[1649161801679,0.0106,47150.0,47141.0,0.26817278]
[1649161801781,0.05300636,47147.0,47141.0,0.26817278]
[1649161801883,0.05300636,47147.0,47146.0,0.00131449]
[1649161802030,0.3106,47150.0,47146.0,0.00131449]
[1649161802131,0.0106,47150.0,47146.0,0.00131449]
[1649161802231,0.40601271,47152.0,47136.0,0.106009]
[1649161802332,0.23163449,47145.0,47142.0,0.00057754]
[1649161802433,0.053004,47145.0,47144.0,0.00131449]
[1649161802533,0.053004,47145.0,47144.0,0.00131435]
[1649161802939,0.0106,47149.0,47144.0,0.00131435]
[1649161803031,0.3342,47152.0,47143.0,0.3]
[1649161803032,0.2492,47158.0,47143.0,0.3]
[1649161803133,1.1275,47160.0,47143.0,0.3]
[1649161803232,0.6275,47160.0,47141.0,0.039]
[1649161803333,0.6275,47160.0,47150.0,0.10598]
[1649161803565,0.23482748,47156.0,47155.0,0.00131402]
[1649161803661,0.105986,47157.0,47155.0,0.00131402]
[1649161803758,0.105986,47157.0,47150.0,0.10598]
[1649161803759,0.105986,47157.0,47156.0,0.00131402]
[1649161804110,0.052992,47158.0,47156.0,0.00131364]
[1649161804211,0.052992,47158.0,47157.0,0.00021189]
[1649161804413,0.052992,47158.0,47154.0,0.052993]
[1649161804710,0.052992,47158.0,47155.0,0.00038709]
[1649161805062,0.052992,47158.0,47154.0,0.28588698]
[1649161805314,0.052992,47158.0,47154.0,0.04224598]
[1649161805416,0.052992,47158.0,47157.0,0.01072443]
[1649161805519,0.052992,47158.0,47151.0,0.2441764]
[1649161805615,0.052992,47158.0,47150.0,0.20598]
[1649161805764,0.052992,47158.0,47150.0,0.10598]
[1649161806266,0.052992,47158.0,47154.0,0.25436295]
[1649161806367,0.052992,47158.0,47150.0,0.20598]
[1649161806469,0.052992,47158.0,47153.0,0.052995]
[1649161806765,0.05299666,47157.0,47153.0,0.052995]
[1649161807166,0.05299666,47157.0,47150.0,0.10598]
[1649161807293,0.052997,47156.0,47151.0,0.25899635]
[1649161807395,0.05,47155.0,47151.0,0.25899635]
[1649161807498,0.05,47155.0,47154.0,0.16151564]
[1649161807647,0.04076891,47155.0,47148.0,0.42035386]
[1649161807745,0.04076891,47155.0,47153.0,0.052992]
[1649161807947,0.04076891,47155.0,47154.0,0.00631456]
[1649161808648,0.32498404,47155.0,47154.0,0.00631456]
[1649161808748,0.04076891,47155.0,47154.0,0.00631456]
[1649161809149,0.05305107,47155.0,47154.0,0.04842479]
[1649161809350,0.06533323,47155.0,47154.0,0.04923688]
[1649161811846,0.03676868,47155.0,47154.0,0.04923688]
[1649161811947,0.02515851,47155.0,47154.0,0.04923688]
[1649161812051,0.1084313,47171.0,47155.0,1.85]
[1649161812151,0.0106,47169.0,47157.0,0.052979]
[1649161812247,0.0024619,47171.0,47166.0,0.26382101]
[1649161812347,0.0024619,47171.0,47167.0,0.3]
[1649161812450,1.6974775,47173.0,47166.0,0.26382101]
[1649161812963,1.6974775,47173.0,47167.0,0.3]
[1649161813152,1.6974775,47173.0,47172.0,0.16151564]
[1649161813248,1.6974775,47173.0,47172.0,0.21448164]
[1649161813553,1.2728775,47173.0,47172.0,0.21448164]
[1649161813950,1.2728775,47173.0,47172.0,0.052966]
[1649161814452,0.9543775,47173.0,47172.0,0.09507623]
[1649161814652,0.9543775,47173.0,47172.0,0.09088832]
[1649161814991,0.9543775,47173.0,47172.0,0.25240396]
[1649161815096,0.9543775,47173.0,47172.0,0.09088832]
[1649161815394,0.7154775,47173.0,47172.0,0.09088832]
[1649161815593,0.7154775,47173.0,47172.0,0.10160707]
[1649161816395,0.5363775,47173.0,47172.0,0.10160707]
[1649161817549,0.4019775,47173.0,47172.0,0.05364107]
[1649161818545,0.40257101,47173.0,47172.0,0.05364107]
[1649161819713,0.40257101,47173.0,47172.0,0.10661307]
[1649161820953,0.40257101,47173.0,47172.0,0.05364107]
[1649161821600,0.4019775,47173.0,47172.0,0.05364107]
[1649161821851,0.60188648,47173.0,47172.0,0.05364107]
[1649161822053,0.60188648,47173.0,47172.0,0.04292232]
[1649161822308,0.90188648,47173.0,47172.0,0.04292232]
[1649161822805,1.22660668,47173.0,47172.0,0.04292232]
[1649161822902,0.92660668,47173.0,47172.0,0.04292232]
[1649161823308,1.39434466,47173.0,47172.0,0.04292232]
[1649161824606,1.06962446,47173.0,47172.0,0.04292232]
[1649161825210,0.22237357,47171.0,47169.0,0.00057566]
[1649161825308,0.32835999,47171.0,47169.0,0.00057566]
[1649161825417,0.32835999,47171.0,47169.0,5.66e-06]
[1649161825511,0.32835999,47171.0,47153.0,0.0106]
[1649161825609,0.31906968,47162.0,47153.0,0.0106]
[1649161825717,0.10599799,47167.0,47152.0,0.0106]
[1649161825816,0.10599799,47167.0,47152.0,0.3106]
[1649161826162,0.10599799,47167.0,47152.0,0.0106]
[1649161826467,0.052999,47166.0,47157.0,0.31073468]
[1649161826562,0.295885,47161.0,47157.0,0.36372568]
[1649161826711,0.21199599,47167.0,47157.0,0.36372568]
[1649161826814,0.10599799,47167.0,47157.0,0.36372568]
[1649161827213,0.07399857,47171.0,47157.0,0.37432568]
[1649161827312,0.06339857,47171.0,47157.0,0.37432568]
[1649161827812,0.052982,47165.0,47157.0,0.37432568]
[1649161827913,0.052982,47165.0,47161.0,0.21774863]
[1649161828113,0.052982,47165.0,47157.0,0.37432568]
[1649161828414,0.052982,47165.0,47158.0,0.3]
[1649161828517,0.052982,47165.0,47159.0,0.063581]
[1649161828714,0.052982,47165.0,47159.0,0.0534091]
[1649161829014,0.27863259,47160.0,47159.0,0.0004281]
[1649161829214,0.105981,47163.0,47161.0,0.14719825]
[1649161830043,0.3,47162.0,47161.0,0.14719825]
[1649161830246,0.54655513,47162.0,47161.0,0.14719825]
[1649161830946,0.24655513,47162.0,47161.0,0.14719825]
[1649161831247,0.54655513,47162.0,47161.0,0.14719825]
[1649161831447,0.24655513,47162.0,47161.0,0.14719825]
[1649161831747,0.86684589,47162.0,47161.0,0.14719825]
[1649161831847,0.03026862,47162.0,47161.0,0.14719825]
[1649161832099,0.159568,47163.0,47161.0,0.14719825]
[1649161832446,0.21181117,47162.0,47161.0,0.14719825]
[1649161832549,0.51181117,47162.0,47161.0,0.14719825]
[1649161832650,0.51181117,47162.0,47159.0,0.00061534]
[1649161832651,2.34719,47161.0,47159.0,0.00061534]
[1649161832754,0.3,47160.0,47159.0,5.34e-06]
[1649161832953,0.05301166,47159.0,47150.0,0.005]
[1649161833053,0.439,47160.0,47150.0,0.005]
[1649161833054,0.10604,47157.0,47150.0,0.005]
[1649161833151,0.29966073,47156.0,47150.0,0.005]
[1649161833304,0.33866073,47156.0,47137.0,0.01061]
[1649161833655,0.32792525,47146.0,47136.0,0.01061]
[1649161833756,0.053025,47146.0,47137.0,0.26167547]
[1649161833904,0.053025,47146.0,47132.0,0.1109177]
[1649161833905,0.053025,47146.0,47138.0,0.25589349]
[1649161834055,0.053025,47144.0,47138.0,0.25589349]
[1649161834755,0.21209952,47144.0,47138.0,0.25589349]
[1649161834856,0.62385051,47144.0,47138.0,0.25589349]
[1649161834955,0.22620157,47141.0,47138.0,0.25589349]
[1649161835061,0.05302,47141.0,47138.0,0.25589349]
[1649161835757,0.05301736,47140.0,47138.0,0.25589349]
[1649161836610,0.05302,47141.0,47138.0,0.25589349]
[1649161836813,0.106008,47146.0,47138.0,0.25589349]
[1649161836814,0.053003,47143.0,47138.0,0.25589349]
[1649161836962,0.05300251,47148.0,47138.0,0.25589349]
[1649161837213,0.05300251,47148.0,47142.0,0.27224924]
[1649161837776,0.05300251,47148.0,47147.0,0.22492766]
[1649161837977,0.05300251,47148.0,47140.0,0.106006]
[1649161838128,0.10602034,47146.0,47138.0,0.01061]
[1649161838376,0.10602034,47146.0,47145.0,0.00056076]
[1649161838926,0.0106,47151.0,47145.0,0.00056076]
[1649161838927,0.3,47151.0,47145.0,0.00056076]
[1649161839029,0.0106,47151.0,47145.0,0.00056076]
[1649161839130,0.0106,47160.0,47145.0,0.00056076]
[1649161839233,0.0106,47160.0,47146.0,0.19990884]
[1649161839329,0.55350574,47161.0,47147.0,0.3]
[1649161839428,0.0106,47160.0,47147.0,0.3]
[1649161839539,0.105994,47156.0,47150.0,0.00056072]
[1649161839979,0.105994,47156.0,47152.0,0.25764466]
[1649161840333,0.105994,47156.0,47150.0,0.00056072]
[1649161840531,0.105994,47156.0,47146.0,0.24606671]
[1649161840632,0.05300031,47153.0,47150.0,0.105989]
[1649161840730,0.05300031,47153.0,47151.0,0.00056072]
[1649161840831,0.10600331,47153.0,47151.0,0.00056072]
[1649161840935,0.08211967,47153.0,47151.0,0.00056072]
[1649161841759,0.08211967,47153.0,47146.0,0.24606671]
[1649161841859,0.05301048,47150.0,47141.0,0.25509697]
[1649161841957,0.053014,47148.0,47141.0,0.25509697]
[1649161842158,0.053014,47148.0,47139.0,0.25509697]
[1649161842308,0.053014,47148.0,47138.0,0.25509697]
[1649161842558,0.053014,47148.0,47143.0,0.25633758]
[1649161842661,0.053014,47148.0,47139.0,0.01061]
[1649161843059,0.053014,47148.0,47139.0,0.063622]
[1649161843159,0.053014,47148.0,47141.0,0.00054195]
[1649161843667,0.05301313,47147.0,47141.0,0.00054195]
[1649161843913,0.053021,47146.0,47141.0,0.00054195]
[1649161844012,0.27682759,47142.0,47141.0,0.00054195]
[1649161844112,0.159073,47145.0,47141.0,0.00054195]
[1649161844211,0.159073,47145.0,47138.0,0.30062009]
[1649161844462,0.159073,47145.0,47141.0,0.00054195]
[1649161844662,0.039,47148.0,47141.0,0.00054195]
[1649161844802,0.01061,47147.0,47141.0,0.00054195]
[1649161845150,0.053025,47143.0,47141.0,0.00054195]
[1649161845251,0.053025,47143.0,47138.0,0.29998704]
[1649161845352,0.053025,47143.0,47138.0,0.58693385]
[1649161845554,0.053025,47143.0,47138.0,0.29998704]
[1649161845651,0.053025,47143.0,47140.0,0.00054419]
[1649161846654,0.053025,47143.0,47133.0,0.21290052]
[1649161846954,0.053025,47143.0,47135.0,0.053017]
[1649161847053,0.053025,47143.0,47135.0,0.26591752]
[1649161847153,0.053025,47143.0,47139.0,0.24087101]
[1649161847410,0.05302145,47141.0,47139.0,0.24087101]
[1649161847803,0.053025,47143.0,47139.0,0.24087101]
[1649161848304,0.053025,47143.0,47139.0,0.53727072]
[1649161848553,0.053025,47143.0,47139.0,0.24087101]
[1649161848851,0.053025,47143.0,47140.0,0.053012]
[1649161849801,0.053025,47143.0,47139.0,0.24148606]
[1649161849901,0.053025,47143.0,47139.0,0.00061505]
[1649161850209,0.053025,47143.0,47137.0,0.11132964]
[1649161850306,0.053025,47143.0,47132.0,0.77245361]
[1649161850407,0.053025,47143.0,47139.0,0.00061505]
[1649161850909,0.15904933,47143.0,47140.0,0.24514708]
[1649161851009,0.09372116,47143.0,47140.0,0.24514708]
[1649161851560,0.09372116,47143.0,47133.0,0.36642661]
[1649161851561,0.053011,47141.0,47133.0,0.11132964]
[1649161851659,0.053011,47141.0,47139.0,0.00061505]
[1649161851965,0.00685956,47141.0,47139.0,0.00061505]
[1649161852616,0.0530155,47139.0,47135.0,0.23183155]
[1649161852863,0.106031,47140.0,47138.0,0.00061506]
[1649161853721,0.159045,47140.0,47138.0,0.00061506]
[1649161853870,0.159045,47140.0,47136.0,0.053014]
[1649161854068,0.159045,47140.0,47137.0,0.0006029]
[1649161854267,0.10603099,47139.0,47137.0,0.0006029]
[1649161855020,0.10603099,47139.0,47132.0,0.33474996]
[1649161855119,0.10603099,47139.0,47132.0,0.63474996]
[1649161855221,0.10603099,47139.0,47136.0,0.00060291]
[1649161855819,0.30652329,47137.0,47136.0,0.00060291]
[1649161855923,0.30652329,47137.0,47136.0,0.01811831]
[1649161856052,0.10603099,47139.0,47136.0,0.01811831]
[1649161856153,0.10603099,47139.0,47136.0,0.00060291]
[1649161856251,0.10603099,47139.0,47131.0,0.5]
[1649161856456,0.10603099,47139.0,47134.0,0.00060292]
[1649161857156,0.34580772,47138.0,47134.0,0.00060292]
[1649161857256,0.10603099,47139.0,47134.0,0.00060292]
[1649161857505,0.10603099,47139.0,47131.0,0.5]
[1649161857605,0.10603099,47139.0,47134.0,0.00057424]
[1649161858409,0.3728925,47139.0,47134.0,0.00057424]
[1649161858610,0.3728925,47139.0,47131.0,0.5]
[1649161858706,0.10603099,47139.0,47131.0,0.5]
[1649161858807,0.10603099,47139.0,47134.0,0.00057423]
[1649161859849,0.10603099,47139.0,47133.0,0.2547448]
[1649161859951,0.10603099,47139.0,47131.0,0.5]
[1649161860051,0.10603099,47139.0,47134.0,0.00057423]
[1649161860151,0.15603099,47139.0,47134.0,0.00057423]
[1649161860353,0.15603099,47139.0,47134.0,0.00037423]
[1649161860801,0.15103099,47139.0,47134.0,0.00037423]
[1649161861054,0.15103099,47139.0,47131.0,0.49151284]
[1649161861153,0.49790166,47139.0,47131.0,0.49151284]
[1649161861654,0.15103099,47139.0,47131.0,0.49151284]
[1649161864503,0.15103099,47139.0,47134.0,0.23653664]
[1649161864707,0.15103099,47139.0,47135.0,0.3]
[1649161864805,0.10103099,47139.0,47135.0,0.3]
[1649161865005,0.05189857,47139.0,47135.0,0.3]
[1649161865305,0.05189857,47139.0,47137.0,0.21281032]
[1649161865813,0.05189857,47139.0,47138.0,0.3127768]
[1649161866107,0.10189857,47139.0,47138.0,0.3127768]
[1649161866759,0.10189857,47139.0,47132.0,0.00061513]
[1649161866861,0.40189857,47139.0,47132.0,0.00061513]
[1649161866961,0.10189857,47139.0,47132.0,0.00061513]
[1649161867059,0.10189857,47139.0,47131.0,0.49151284]
[1649161867314,0.10189857,47139.0,47132.0,0.00061512]
[1649161867461,0.26097857,47139.0,47132.0,0.00061512]
[1649161867662,0.05,47138.0,47132.0,0.00061512]
[1649161867760,0.05,47138.0,47133.0,0.25562643]
[1649161867761,0.10604179,47137.0,47133.0,0.25562643]
[1649161868211,0.10604179,47137.0,47131.0,0.49151284]
[1649161868410,0.10604179,47137.0,47135.0,0.27809314]
[1649161868612,0.10604179,47137.0,47132.0,0.00061512]
[1649161869314,0.10604179,47137.0,47132.0,0.22339406]
[1649161869415,0.10604179,47137.0,47131.0,0.49151284]
[1649161869616,0.10604179,47137.0,47132.0,0.00059546]
[1649161870618,0.10604179,47137.0,47131.0,0.49151284]
[1649161870822,0.10604179,47137.0,47132.0,0.00059546]
[1649161871271,0.10604179,47137.0,47132.0,0.25107821]